lending/lending_fUSD_20250719
["ID","MTS","AMOUNT","RATE_DAILY","PERIOD"]
[373321492,1752943875861,-150.0,0.00019835,2]
[373321493,1752943875871,-503.0,0.00019835,2]
[373321494,1752943875880,-150.0,0.00019835,2]
[373321495,1752943875890,-150.0,0.00019835,2]
[373321496,1752943875900,-200.0,0.00019835,2]
[373321497,1752943875909,-150.0,0.00019835,2]
[373321498,1752943875919,-607.32255844,0.00019835,2]
[373321499,1752943875928,-1212.0,0.00019835,2]
[373321500,1752943875938,-151.0,0.00019835,2]
[373321501,1752943875947,-151.0,0.00019835,2]
[373321502,1752943875957,-186.46749102,0.00019835,2]
[373321503,1752943875967,-151.0,0.00019835,2]
[373321504,1752943875976,-160.0,0.00019835,2]
[373321505,1752943875986,-151.0,0.00019835,2]
[373321506,1752943875995,-1557.145121,0.00019835,2]
[373321507,1752943876005,-1459.65329,0.00019835,2]
[373321508,1752943876015,-1472.732795,0.00019835,2]
[373321509,1752943876024,-480.0,0.00019835,2]
[373321510,1752943876035,-151.0,0.00019835,2]
[373321511,1752943876044,-153.915813,0.00019835,2]
[373321512,1752943876054,-1500.0,0.00019835,7]
[373321513,1752943876063,-1500.0,0.00019835,7]
[373321514,1752943876072,-1500.0,0.00019835,7]
[373321515,1752943876083,-1500.0,0.00019835,7]
[373321516,1752943876092,-1500.0,0.00019835,7]
[373321517,1752943876102,-1500.0,0.00019835,7]
[373321518,1752943876111,-1500.0,0.00019835,7]
[373321519,1752943876121,-1500.0,0.00019835,7]
[373321520,1752943876130,-1500.0,0.00019835,7]
[373321521,1752943876140,-1500.0,0.00019835,7]
[373321522,1752943876149,-1500.0,0.00019835,7]
[373321523,1752943876159,-1500.0,0.00019835,7]
[373321524,1752943876168,-1500.0,0.00019835,7]
[373321525,1752943876177,-1500.0,0.00019835,7]
[373321526,1752943876187,-1500.0,0.00019835,7]
[373321527,1752943876196,-1500.0,0.00019835,7]
[373321528,1752943876206,-1500.0,0.00019835,7]
[373321529,1752943876215,-1500.0,0.00019835,7]
[373321530,1752943876225,-1500.0,0.00019835,7]
[373321531,1752943876234,-1500.0,0.00019835,7]
[373321532,1752943876244,-1500.0,0.00019835,7]
[373321533,1752943876253,-1500.0,0.00019835,7]
[373321534,1752943876263,-151.0,0.00019835,2]
[373321535,1752943876272,-216.31,0.00019835,2]
[373321536,1752943876282,-480.0,0.00019835,2]
[373321537,1752943876291,-480.0,0.00019835,2]
[373321538,1752943876300,-512.53,0.00019835,2]
[373321539,1752943876311,-480.0,0.00019835,2]
[373321540,1752943876321,-480.0,0.00019835,2]
[373321541,1752943876330,-480.0,0.00019835,2]
[373321542,1752943876340,-545.43,0.00019835,2]
[373321543,1752943876349,-480.0,0.00019835,2]
[373321544,1752943876359,-600.99,0.00019835,2]
[373321545,1752943876369,-555.93,0.00019835,2]
[373321546,1752943876380,-736.27,0.00019835,2]
[373321547,1752943876389,-480.0,0.00019835,2]
[373321548,1752943876399,-480.0,0.00019835,2]
[373321549,1752943876408,-480.0,0.00019835,2]
[373321550,1752943876418,-480.0,0.00019835,2]
[373321551,1752943876427,-480.0,0.00019835,2]
[373321552,1752943876436,-480.0,0.00019835,2]
[373321553,1752943876446,-480.0,0.00019835,2]
[373321554,1752943876456,-200.62,0.00019835,2]
[373321555,1752943876465,-480.0,0.00019835,2]
[373321556,1752943876475,-545.91,0.00019835,2]
[373321557,1752943876485,-480.0,0.00019835,2]
[373321558,1752943876495,-480.0,0.00019835,2]
[373321559,1752943876504,-480.0,0.00019835,2]
[373321560,1752943876514,-509.69,0.00019835,2]
[373321561,1752943876524,-595.78,0.00019835,2]
[373321562,1752943876535,-480.0,0.00019835,2]
[373321563,1752943876545,-480.0,0.00019835,2]
[373321564,1752943876555,-716.3,0.00019835,2]
[373321565,1752943876565,-480.0,0.00019835,2]
[373321566,1752943876574,-480.0,0.00019835,2]
[373321567,1752943876584,-480.0,0.00019835,2]
[373321568,1752943876594,-480.0,0.00019835,2]
[373321569,1752943876604,-480.0,0.00019835,2]
[373321570,1752943876614,-480.0,0.00019835,2]
[373321571,1752943876624,-579.17,0.00019835,2]
[373321572,1752943876635,-480.0,0.00019835,2]
[373321573,1752943876645,-480.0,0.00019835,2]
[373321574,1752943876655,-480.0,0.00019835,2]
[373321575,1752943876666,-480.0,0.00019835,2]
[373321576,1752943876681,-480.0,0.00019835,2]
[373321577,1752943876691,-480.0,0.00019835,2]
[373321578,1752943876702,-695.29,0.00019835,2]
[373321579,1752943876712,-480.0,0.00019835,2]
[373321580,1752943876723,-480.0,0.00019835,2]
[373321581,1752943876739,-480.0,0.00019835,2]
[373321582,1752943876750,-480.0,0.00019835,2]
[373321583,1752943876760,-515.25,0.00019835,2]
[373321584,1752943876770,-335.97,0.00019835,2]
[373321585,1752943876785,-506.58,0.00019835,2]
[373321586,1752943876795,-480.0,0.00019835,2]
[373321587,1752943876805,-480.0,0.00019835,2]
[373321588,1752943876814,-480.0,0.00019835,2]
[373321589,1752943876824,-480.0,0.00019835,2]
[373321590,1752943876834,-480.0,0.00019835,2]
[373321591,1752943876845,-480.0,0.00019835,2]
[373321592,1752943876855,-480.0,0.00019835,2]
[373321593,1752943876865,-480.0,0.00019835,2]
[373321594,1752943876876,-480.0,0.00019835,2]
[373321595,1752943876886,-480.0,0.00019835,2]
[373321596,1752943876896,-480.0,0.00019835,2]
[373321597,1752943876906,-480.0,0.00019835,2]
[373321598,1752943876917,-480.0,0.00019835,2]
[373321599,1752943876927,-480.0,0.00019835,2]
[373321600,1752943876936,-480.0,0.00019835,2]
[373321601,1752943876946,-510.51,0.00019835,2]
[373321602,1752943876955,-628.32,0.00019835,2]
[373321603,1752943876965,-480.0,0.00019835,2]
[373321604,1752943876976,-480.0,0.00019835,2]
[373321605,1752943876986,-480.0,0.00019835,2]
[373321606,1752943876996,-480.0,0.00019835,2]
[373321607,1752943877006,-480.0,0.00019835,2]
[373321608,1752943877016,-503.07,0.00019835,2]
[373321609,1752943877026,-480.0,0.00019835,2]
[373321610,1752943877036,-556.63,0.00019835,2]
[373321611,1752943877046,-758.59,0.00019835,2]
[373321612,1752943877056,-480.0,0.00019835,2]
[373321613,1752943877067,-480.0,0.00019835,2]
[373321614,1752943877076,-480.0,0.00019835,2]
[373321615,1752943877086,-480.0,0.00019835,2]
[373321616,1752943877096,-480.0,0.00019835,2]
[373321617,1752943877106,-480.0,0.00019835,2]
[373321618,1752943877116,-480.0,0.00019835,2]
[373321619,1752943877126,-526.41,0.00019835,2]
[373321620,1752943877136,-480.0,0.00019835,2]
[373321621,1752943877146,-480.0,0.00019835,2]
[373321622,1752943877155,-2364.56,0.00019835,2]
[373321623,1752943877165,-352.2,0.00019835,2]
[373321624,1752943877175,-480.0,0.00019835,2]
[373321625,1752943877186,-708.41,0.00019835,2]
[373321626,1752943877196,-614.76,0.00019835,2]
[373321627,1752943877206,-728.03,0.00019835,2]
[373321628,1752943877216,-480.0,0.00019835,2]
[373321629,1752943877227,-926.56,0.00019835,2]
[373321630,1752943877238,-480.0,0.00019835,2]
[373321631,1752943877248,-1776.31,0.00019835,2]
[373321632,1752943877259,-568.24,0.00019835,2]
[373321633,1752943877269,-639.91,0.00019835,2]
[373321634,1752943877280,-480.0,0.00019835,2]
[373321635,1752943877290,-480.0,0.00019835,2]
[373321636,1752943877300,-739.39,0.00019835,2]
[373321637,1752943877311,-965.46,0.00019835,2]
[373321638,1752943877321,-484.68,0.00019835,2]
[373321639,1752943877332,-480.0,0.00019835,2]
[373321640,1752943877342,-824.31,0.00019835,2]
[373321641,1752943877352,-480.0,0.00019835,2]
[373321642,1752943877362,-3679.87,0.00019835,2]
[373321643,1752943877371,-651.46,0.00019835,2]
[373321644,1752943877381,-3282.25,0.00019835,2]
[373321645,1752943877391,-1426.99,0.00019835,2]
[373321646,1752943877401,-567.89,0.00019835,2]
[373321647,1752943877411,-525.53,0.00019835,2]
[373321648,1752943877420,-480.0,0.00019835,2]
[373321649,1752943877430,-480.0,0.00019835,2]
[373321650,1752943877440,-480.0,0.00019835,2]
[373321651,1752943877450,-668.04,0.00019835,2]
[373321652,1752943877461,-797.63,0.00019835,2]
[373321653,1752943877471,-791.95,0.00019835,2]
[373321654,1752943877482,-617.74,0.00019835,2]
[373321655,1752943877493,-480.0,0.00019835,2]
[373321656,1752943877503,-702.27,0.00019835,2]
[373321657,1752943877513,-640.28,0.00019835,2]
[373321658,1752943877525,-523.63,0.00019835,2]
[373321659,1752943877535,-2586.65,0.00019835,2]
[373321660,1752943877546,-480.0,0.00019835,2]
[373321661,1752943877556,-480.0,0.00019835,2]
[373321662,1752943877567,-480.0,0.00019835,2]
[373321663,1752943877578,-1294.91,0.00019835,2]
[373321664,1752943877587,-480.0,0.00019835,2]
[373321665,1752943877597,-480.0,0.00019835,2]
[373321666,1752943877609,-1637.75,0.00019835,2]
[373321667,1752943877619,-2000.23,0.00019835,2]
[373321668,1752943877630,-498.01,0.00019835,2]
[373321669,1752943877640,-480.0,0.00019835,2]
[373321670,1752943877650,-480.0,0.00019835,2]
[373321671,1752943877660,-1150.84,0.00019835,2]
[373321672,1752943877670,-480.0,0.00019835,2]
[373321673,1752943877680,-488.92,0.00019835,2]
[373321674,1752943877691,-480.0,0.00019835,2]
[373321675,1752943877702,-1162.91,0.00019835,2]
[373321676,1752943877712,-1228.06,0.00019835,2]
[373321677,1752943877722,-480.0,0.00019835,2]
[373321678,1752943877738,-480.0,0.00019835,2]
[373321679,1752943877750,-480.0,0.00019835,2]
[373321680,1752943877760,-492.45,0.00019835,2]
[373321681,1752943877770,-1012.75,0.00019835,2]
[373321682,1752943877782,-2721.18,0.00019835,2]
[373321683,1752943877792,-480.0,0.00019835,2]
[373321684,1752943877802,-3030.15,0.00019835,2]
[373321685,1752943877812,-1766.08,0.00019835,2]
[373321686,1752943877823,-1186.68,0.00019835,2]
[373321687,1752943877832,-480.0,0.00019835,2]
[373321688,1752943877842,-679.12,0.00019835,2]
[373321689,1752943877852,-566.54,0.00019835,2]
[373321690,1752943877863,-480.0,0.00019835,2]
[373321691,1752943877873,-480.0,0.00019835,2]
[373321692,1752943877883,-830.78,0.00019835,2]
[373321693,1752943877894,-480.0,0.00019835,2]
[373321694,1752943877905,-480.0,0.00019835,2]
[373321695,1752943877916,-480.0,0.00019835,2]
[373321696,1752943877927,-480.0,0.00019835,2]
[373321697,1752943877937,-480.0,0.00019835,2]
[373321698,1752943877947,-601.93,0.00019835,2]
[373321699,1752943877956,-1031.87,0.00019835,2]
[373321700,1752943877967,-480.0,0.00019835,2]
[373321701,1752943877977,-750.21,0.00019835,2]
[373321702,1752943877987,-524.84,0.00019835,2]
[373321703,1752943877997,-480.0,0.00019835,2]
[373321704,1752943878007,-1362.0,0.00019835,2]
[373321705,1752943878017,-243.27,0.00019835,2]
[373321706,1752943878027,-628.14,0.00019835,2]
[373321707,1752943878038,-1021.72,0.00019835,2]
[373321708,1752943878048,-480.0,0.00019835,2]
[373321709,1752943878059,-598.63,0.00019835,2]
[373321710,1752943878069,-480.0,0.00019835,2]
[373321711,1752943878079,-480.0,0.00019835,2]
[373321712,1752943878090,-974.52,0.00019835,2]
[373321713,1752943878100,-480.0,0.00019835,2]
[373321714,1752943878110,-2177.47,0.00019835,2]
[373321715,1752943878120,-480.0,0.00019835,2]
[373321716,1752943878131,-480.0,0.00019835,2]
[373321717,1752943878140,-942.83,0.00019835,2]
[373321718,1752943878151,-480.0,0.00019835,2]
[373321719,1752943878162,-828.96,0.00019835,2]
[373321720,1752943878172,-480.0,0.00019835,2]
[373321721,1752943878182,-480.0,0.00019835,2]
[373321722,1752943878192,-480.0,0.00019835,2]
[373321723,1752943878202,-480.0,0.00019835,2]
[373321724,1752943878212,-556.97,0.00019835,2]
[373321725,1752943878223,-340.0,0.00019835,2]
[373321726,1752943878233,-826.87,0.00019835,2]
[373321727,1752943878243,-480.0,0.00019835,2]
[373321728,1752943878254,-480.0,0.00019835,2]
[373321729,1752943878264,-1611.36,0.00019835,2]
[373321730,1752943878274,-480.0,0.00019835,2]
[373321731,1752943878285,-1005.81,0.00019835,2]
[373321732,1752943878295,-2419.72,0.00019835,2]
[373321733,1752943878306,-480.0,0.00019835,2]
[373321734,1752943878316,-798.2,0.00019835,2]
[373321735,1752943878326,-570.36,0.00019835,2]
[373321736,1752943878337,-480.0,0.00019835,2]
[373321737,1752943878347,-306.64,0.00019835,2]
[373321738,1752943878358,-17484.1,0.00019835,2]
[373321739,1752943878367,-3364.0,0.00019835,2]
[373321740,1752943878377,-711.41,0.00019835,2]
[373321741,1752943878388,-480.0,0.00019835,2]
[373321742,1752943878398,-879.16,0.00019835,2]
[373321743,1752943878408,-480.0,0.00019835,2]
[373321744,1752943878419,-552.45,0.00019835,2]
[373321745,1752943878430,-480.0,0.00019835,2]
[373321746,1752943878440,-2775.95,0.00019835,2]
[373321747,1752943878451,-480.0,0.00019835,2]
[373321748,1752943878461,-728.17,0.00019835,2]
[373321749,1752943878471,-480.0,0.00019835,2]
[373321750,1752943878482,-480.0,0.00019835,2]
[373321751,1752943878492,-480.0,0.00019835,2]
[373321752,1752943878502,-587.34,0.00019835,2]
[373321753,1752943878512,-912.42,0.00019835,2]
[373321754,1752943878523,-519.09,0.00019835,2]
[373321755,1752943878533,-252.04,0.00019835,2]
[373321756,1752943878543,-480.0,0.00019835,2]
[373321757,1752943878554,-480.0,0.00019835,2]
[373321758,1752943878564,-480.0,0.00019835,2]
[373321759,1752943878575,-659.47,0.00019835,2]
[373321760,1752943878586,-1040.27,0.00019835,2]
[373321761,1752943878596,-480.0,0.00019835,2]
[373321762,1752943878607,-480.0,0.00019835,2]
[373321763,1752943878617,-585.72,0.00019835,2]
[373321764,1752943878627,-639.04,0.00019835,2]
[373321765,1752943878638,-480.0,0.00019835,2]
[373321766,1752943878648,-480.0,0.00019835,2]
[373321767,1752943878658,-556.83,0.00019835,2]
[373321768,1752943878668,-480.0,0.00019835,2]
[373321769,1752943878678,-1437.95,0.00019835,2]
[373321770,1752943878688,-781.47,0.00019835,2]
[373321771,1752943878699,-545.63,0.00019835,2]
[373321772,1752943878715,-480.0,0.00019835,2]
[373321773,1752943878734,-1105.47,0.00019835,2]
[373321774,1752943878745,-531.31,0.00019835,2]
[373321775,1752943878756,-480.0,0.00019835,2]
[373321776,1752943878767,-480.0,0.00019835,2]
[373321777,1752943878778,-633.88,0.00019835,2]
[373321778,1752943878788,-1624.27,0.00019835,2]
[373321779,1752943878798,-587.49,0.00019835,2]
[373321780,1752943878811,-1423.27,0.00019835,2]
[373321781,1752943878822,-289.1469725,0.00019835,2]
[373321782,1752943878834,-480.0,0.00019835,2]
[373321783,1752943878844,-732.76,0.00019835,2]
[373321784,1752943878855,-1060.24,0.00019835,2]
[373321785,1752943878866,-536.35,0.00019835,2]
[373321786,1752943878878,-510.91,0.00019835,2]
[373321787,1752943879114,-480.0,0.00019835,2]
[373321788,1752943879124,-480.0,0.00019835,2]
[373321789,1752943879135,-1470.77,0.00019835,2]
[373321790,1752943879144,-1633.7,0.00019835,2]
[373321791,1752943879154,-4700.03,0.00019835,2]
[373321792,1752943879164,-480.0,0.00019835,2]
[373321793,1752943879173,-480.0,0.00019835,2]
[373321794,1752943879183,-1009.49,0.00019835,2]
[373321795,1752943879194,-480.0,0.00019835,2]
[373321796,1752943879203,-576.46,0.00019835,2]
[373321797,1752943879214,-491.06,0.00019835,2]
[373321798,1752943879224,-588.39,0.00019835,2]
[373321799,1752943879234,-1021.89,0.00019835,2]
[373321800,1752943879245,-5960.49,0.00019835,2]
[373321801,1752943879255,-476.80070012,0.0001984,7]
[373321802,1752943879264,-210.82967408,0.0001984,7]
[373321803,1752943879274,-168.0,0.00019854,2]
[373321804,1752943879285,-991.3,0.00019865,2]
[373321805,1752943879295,-991.3,0.00019865,2]
[373321806,1752943879305,-991.3,0.00019865,2]
[373321807,1752943879315,-991.3,0.00019865,2]
[373321808,1752943879324,-991.33091133,0.00019865,2]
[373321809,1752943879334,-151.0,0.00019866,2]
[373321810,1752943879344,-206.820731,0.00019866,2]
[373321811,1752943879354,-48042.3986279,0.00019866,2]
[373321812,1752943879365,-151.0,0.00019866,2]
[373321813,1752943879375,-446.13358402,0.00019869,7]
[373321814,1752943879385,-753.66339742,0.0001987,2]
[373321815,1752943879395,-500.0,0.00019873,2]
[373321816,1752943879405,-503.89,0.00019879,2]
[373321817,1752943879415,-503.89,0.00019879,2]
[373321818,1752943879425,-503.89,0.00019879,2]
[373321819,1752943879435,-503.89,0.00019879,2]
[373321820,1752943879445,-503.89,0.00019879,2]
[373321821,1752943879454,-503.89,0.00019879,2]
[373321822,1752943879464,-503.89,0.00019879,2]
[373321823,1752943879474,-503.89,0.00019879,2]
[373321824,1752943879483,-503.93,0.00019879,2]
[373321825,1752943879493,-2548358.89831819,0.0001988,2]
[373321826,1752943879503,-151.0,0.0001988,2]
[373321827,1752943879512,-151.0,0.0001988,2]
[373321828,1752943879522,-151.0,0.0001988,2]
[373321829,1752943879532,-151.0,0.0001988,2]
[373321830,1752943879543,-500.0,0.00019894,2]
[373321831,1752943879552,-600.0,0.00019911,2]
[373321832,1752943879562,-7965.41053268,0.00019911,2]
[373321833,1752943879572,-500.0,0.00019921,2]
[373321834,1752943879582,-1000.0,0.00019921,2]
[373321835,1752943879592,-1000.0,0.00019921,2]
[373321836,1752943879602,-500.0,0.00019921,2]
[373321837,1752943879613,-500.0,0.00019921,2]
[373321838,1752943879623,-1000.0,0.00019921,2]
[373321839,1752943879633,-506.46204771,0.00019921,2]
[373321840,1752943879643,-3166.95756843,0.00019924,7]
[373321841,1752943879652,-3166.95756843,0.00019924,7]
[373321842,1752943879663,-3166.95756843,0.00019924,7]
[373321843,1752943879672,-337.9799879,0.00019924,7]
[373321844,1752943879682,-480.0,0.0001994,2]
[373321845,1752943879692,-1557.145121,0.00019945,2]
[373321846,1752943879702,-1472.732795,0.00019945,2]
[373321847,1752943879712,-1459.65329,0.00019945,2]
[373321848,1752943879722,-480.0,0.00019945,2]
[373321849,1752943879735,-480.0,0.00019945,2]
[373321850,1752943879745,-480.0,0.00019945,2]
[373321851,1752943879755,-480.0,0.00019945,2]
[373321852,1752943879764,-480.0,0.00019945,2]
[373321853,1752943879775,-440.1724764,0.00019945,2]
[373321854,1752943879784,-480.0,0.00019945,2]
[373321855,1752943879793,-555.93,0.00019945,2]
[373321856,1752943879804,-736.27,0.00019945,2]
[373321857,1752943879814,-480.0,0.00019945,2]
[373321858,1752943879824,-480.0,0.00019945,2]
[373321859,1752943879834,-480.0,0.00019945,2]
[373321860,1752943879843,-480.0,0.00019945,2]
[373321861,1752943879852,-480.0,0.00019945,2]
[373321862,1752943879862,-480.0,0.00019945,2]
[373321863,1752943879873,-480.0,0.00019945,2]
[373321864,1752943879884,-480.0,0.00019945,2]
[373321865,1752943879894,-545.91,0.00019945,2]
[373321866,1752943879904,-349.36,0.00019945,2]
[373321867,1752943879914,-480.0,0.00019945,2]
[373321868,1752943879924,-214.82,0.00019945,2]
[373321869,1752943879934,-509.69,0.00019945,2]
[373321870,1752943879943,-595.78,0.00019945,2]
[373321871,1752943879953,-480.0,0.00019945,2]
[373321872,1752943879963,-480.0,0.00019945,2]
[373321873,1752943879974,-716.3,0.00019945,2]
[373321874,1752943879983,-480.0,0.00019945,2]
[373321875,1752943879993,-480.0,0.00019945,2]
[373321876,1752943880003,-480.0,0.00019945,2]
[373321877,1752943880012,-480.0,0.00019945,2]
[373321878,1752943880022,-480.0,0.00019945,2]
[373321879,1752943880031,-516.93,0.00019945,2]
[373321880,1752943880041,-480.0,0.00019945,2]
[373321881,1752943880052,-480.0,0.00019945,2]
[373321882,1752943880062,-480.0,0.00019945,2]
[373321883,1752943880073,-480.0,0.00019945,2]
[373321884,1752943880088,-480.0,0.00019945,2]
[373321885,1752943880097,-480.0,0.00019945,2]
[373321886,1752943880108,-695.29,0.00019945,2]
[373321887,1752943880118,-480.0,0.00019945,2]
[373321888,1752943880129,-480.0,0.00019945,2]
[373321889,1752943880139,-480.0,0.00019945,2]
[373321890,1752943880149,-480.0,0.00019945,2]
[373321891,1752943880159,-515.25,0.00019945,2]
[373321892,1752943880170,-506.58,0.00019945,2]
[373321893,1752943880179,-258.6,0.00019945,2]
[373321894,1752943880189,-480.0,0.00019945,2]
[373321895,1752943880198,-480.0,0.00019945,2]
[373321896,1752943880209,-480.0,0.00019945,2]
[373321897,1752943880218,-480.0,0.00019945,2]
[373321898,1752943880228,-329.36,0.00019945,2]
[373321899,1752943880238,-480.0,0.00019945,2]
[373321900,1752943880248,-480.0,0.00019945,2]
[373321901,1752943880259,-181.32,0.00019945,2]
[373321902,1752943880269,-480.0,0.00019945,2]
[373321903,1752943880279,-480.0,0.00019945,2]
[373321904,1752943880289,-480.0,0.00019945,2]
[373321905,1752943880299,-480.0,0.00019945,2]
[373321906,1752943880308,-480.0,0.00019945,2]
[373321907,1752943880317,-480.0,0.00019945,2]
[373321908,1752943880327,-510.51,0.00019945,2]
[373321909,1752943880337,-482.46,0.00019945,2]
[373321910,1752943880347,-480.0,0.00019945,2]
[373321911,1752943880357,-480.0,0.00019945,2]
[373321912,1752943880366,-480.0,0.00019945,2]
[373321913,1752943880378,-480.0,0.00019945,2]
[373321914,1752943880389,-503.07,0.00019945,2]
[373321915,1752943880400,-480.0,0.00019945,2]
[373321916,1752943880409,-556.63,0.00019945,2]
[373321917,1752943880419,-758.59,0.00019945,2]
[373321918,1752943880428,-480.0,0.00019945,2]
[373321919,1752943880437,-480.22187914,0.00019945,2]
[373321920,1752943880447,-480.0,0.00019945,2]
[373321921,1752943880456,-480.0,0.00019945,2]
[373321922,1752943880466,-480.0,0.00019945,2]
[373321923,1752943880476,-480.0,0.00019945,2]
[373321924,1752943880486,-480.0,0.00019945,2]
[373321925,1752943880495,-526.41,0.00019945,2]
[373321926,1752943880505,-260.55520854,0.00019945,2]
[373321927,1752943880515,-480.0,0.00019945,2]
[373321928,1752943880524,-2364.56,0.00019945,2]
[373321929,1752943880535,-480.0,0.00019945,2]
[373321930,1752943880544,-708.41,0.00019945,2]
[373321931,1752943880554,-614.76,0.00019945,2]
[373321932,1752943880564,-728.03,0.00019945,2]
[373321933,1752943880574,-480.0,0.00019945,2]
[373321934,1752943880584,-926.56,0.00019945,2]
[373321935,1752943880593,-480.0,0.00019945,2]
[373321936,1752943880602,-1776.31,0.00019945,2]
[373321937,1752943880612,-568.24,0.00019945,2]
[373321938,1752943880622,-639.91,0.00019945,2]
[373321939,1752943880631,-480.0,0.00019945,2]
[373321940,1752943880640,-480.0,0.00019945,2]
[373321941,1752943880650,-739.39,0.00019945,2]
[373321942,1752943880660,-965.46,0.00019945,2]
[373321943,1752943880670,-480.0,0.00019945,2]
[373321944,1752943880679,-824.31,0.00019945,2]
[373321945,1752943880688,-480.0,0.00019945,2]
[373321946,1752943880699,-3679.87,0.00019945,2]
[373321947,1752943880709,-651.46,0.00019945,2]
[373321948,1752943880719,-3282.25,0.00019945,2]
[373321949,1752943880732,-1426.99,0.00019945,2]
[373321950,1752943880742,-567.89,0.00019945,2]
[373321951,1752943880752,-525.53,0.00019945,2]
[373321952,1752943880762,-480.0,0.00019945,2]
[373321953,1752943880772,-480.0,0.00019945,2]
[373321954,1752943880783,-565.33222742,0.00019945,2]
[373321955,1752943880793,-668.04,0.00019945,2]
[373321956,1752943880803,-797.63,0.00019945,2]
[373321957,1752943880814,-791.95,0.00019945,2]
[373321958,1752943880823,-617.74,0.00019945,2]
[373321959,1752943880833,-480.0,0.00019945,2]
[373321960,1752943880843,-702.27,0.00019945,2]
[373321961,1752943880853,-640.28,0.00019945,2]
[373321962,1752943880863,-523.63,0.00019945,2]
[373321963,1752943880873,-2586.65,0.00019945,2]
[373321964,1752943880884,-480.0,0.00019945,2]
[373321965,1752943880893,-480.0,0.00019945,2]
[373321966,1752943880903,-480.0,0.00019945,2]
[373321967,1752943880913,-1294.91,0.00019945,2]
[373321968,1752943880923,-480.0,0.00019945,2]
[373321969,1752943880933,-463.49,0.00019945,2]
[373321970,1752943880942,-1637.75,0.00019945,2]
[373321971,1752943880953,-2000.23,0.00019945,2]
[373321972,1752943880963,-498.01,0.00019945,2]
[373321973,1752943880973,-480.0,0.00019945,2]
[373321974,1752943880983,-480.0,0.00019945,2]
[373321975,1752943880993,-1150.84,0.00019945,2]
[373321976,1752943881003,-480.0,0.00019945,2]
[373321977,1752943881012,-488.92,0.00019945,2]
[373321978,1752943881022,-480.0,0.00019945,2]
[373321979,1752943881032,-1162.91,0.00019945,2]
[373321980,1752943881041,-1228.06,0.00019945,2]
[373321981,1752943881051,-480.0,0.00019945,2]
[373321982,1752943881061,-480.0,0.00019945,2]
[373321983,1752943881071,-480.0,0.00019945,2]
[373321984,1752943881081,-492.45,0.00019945,2]
[373321985,1752943881091,-1012.75,0.00019945,2]
[373321986,1752943881101,-2721.18,0.00019945,2]
[373321987,1752943881111,-480.0,0.00019945,2]
[373321988,1752943881121,-3030.15,0.00019945,2]
[373321989,1752943881131,-1766.08,0.00019945,2]
[373321990,1752943881140,-679.12,0.00019945,2]
[373321991,1752943881149,-1186.68,0.00019945,2]